{"text_format":"3","workbook":"xlsx","n_sheets":4,"sheets":["Fatura","Clientes","Faturas – Principal","Detalhes da fatura"],"not_rendered":{"images":6,"defined_names":8},"read":"whole","date_system":"1900"}

{"sheet":"Fatura","index":0,"n_rows":40,"n_cols":8,"rows_kept":40,"merged":[[0,3,0,6],[3,5,3,6],[35,4,35,5],[36,1,36,2],[36,4,36,5],[37,4,37,5],[38,4,38,5],[39,4,39,5]]}
[{"$nulls":3},"Cansado de criar faturas manualmente? Você quer ser pago mais cedo? Inscreva-se no Microsoft Invoicing hoje"]
[{"$nulls":7}," "]
[]
[]
[null,null,"NOME DA EMPRESA"]
[null,null," Endereço"]
[null,null," Cidade, Estado, CEP"]
[]
[null,"COBRANÇA PARA ",{"$f":"IFERROR(VLOOKUP(VLOOKUP(rngFatura,FaturasPrincipal[],2,FALSE),ListaClientes[],3,TRUE),\"\")","v":"Contoso, Ltd"},{"$f":"\"Telefone: \"&IFERROR(VLOOKUP(VLOOKUP(rngFatura,FaturasPrincipal[],2,FALSE),ListaClientes[],9,FALSE),\"\")","v":"Telefone: (55) 3555-0189"},null,"Nº DA FATURA","3-456-2"]
[null,null,{"$f":"IFERROR(IF((VLOOKUP(VLOOKUP(rngFatura,FaturasPrincipal[],2,FALSE),ListaClientes[],5,FALSE))=\"\",\"\",(VLOOKUP(VLOOKUP(rngFatura,FaturasPrincipal[],2,FALSE),ListaClientes[],5,FALSE))),\"\")","v":"Rua Castanheira, 555"},{"$f":"\"Fax: \"&IFERROR(VLOOKUP(VLOOKUP(rngFatura,FaturasPrincipal[],2,FALSE),ListaClientes[],11,FALSE),\"\")","v":"Fax: 432-555-0123"},null,"Data da Fatura:",{"$f":"IFERROR(IF(VLOOKUP(rngFatura,FaturasPrincipal[],3,FALSE)=\"\",\"\",VLOOKUP(rngFatura,FaturasPrincipal[],3,FALSE)),\"\")","v":"2019-11-01"}]
[null,null,{"$f":"IFERROR(VLOOKUP(VLOOKUP(rngFatura,FaturasPrincipal[],2,FALSE),ListaClientes[],6,FALSE)&\", \"& VLOOKUP(VLOOKUP(G9,FaturasPrincipal[],2,FALSE),ListaClientes[],7,FALSE)&\" \"&VLOOKUP(VLOOKUP(G9,FaturasPrincipal[],2,FALSE),ListaClientes[],8,FALSE),\"\")","v":"Campinas, SP 98765"},{"$f":"\"Email: \"&IFERROR(VLOOKUP(VLOOKUP(rngFatura,FaturasPrincipal[],2,FALSE),ListaClientes[],10,FALSE),\"\")","v":"Email: pessoa@exemplo.com"}]
[]
[]
[null,"Nº do item","Descrição","Qtd.","Preço Unitário","Desconto","Preço"]
[null,{"$f":"IFERROR(INDEX(DetalhesDaFatura[],SMALL(IF(DetalhesDaFatura[]=rngFatura,ROW(DetalhesDaFatura[])-ROW(DetalhesDaFatura[#Headers])), ROW(2:2)), MATCH($B$14, DetalhesDaFatura[#Headers], 0)),\"\")","v":"Z4568"},{"$f":"IFERROR(INDEX(DetalhesDaFatura[],SMALL(IF(DetalhesDaFatura[]=rngFatura,ROW(DetalhesDaFatura[])-ROW(DetalhesDaFatura[#Headers])), ROW(2:2)), MATCH($C$14, DetalhesDaFatura[#Headers], 0)),\"\")","v":"Fatura 3-456-2 Dados 2"},{"$f":"IFERROR(INDEX(DetalhesDaFatura[],SMALL(IF(DetalhesDaFatura[]=rngFatura,ROW(DetalhesDaFatura[])-ROW(DetalhesDaFatura[#Headers])), ROW(2:2)), MATCH($D$14, DetalhesDaFatura[#Headers], 0)),\"\")","v":40},{"$f":"IFERROR(INDEX(DetalhesDaFatura[],SMALL(IF(DetalhesDaFatura[]=rngFatura,ROW(DetalhesDaFatura[])-ROW(DetalhesDaFatura[#Headers])), ROW(2:2)), MATCH($E$14, DetalhesDaFatura[#Headers], 0)),\"\")","v":{"v":4,"d":"R$ 4.00"}},{"$f":"IFERROR(INDEX(DetalhesDaFatura[],SMALL(IF(DetalhesDaFatura[]=rngFatura,ROW(DetalhesDaFatura[])-ROW(DetalhesDaFatura[#Headers])), ROW(2:2)), MATCH($F$14, DetalhesDaFatura[#Headers], 0)),\"\")","v":{"v":5,"d":"R$ 5.00"}},{"$f":"IFERROR((D15*E15)-F15,\"\")","v":{"v":155,"d":"R$ 155.00"}}]
[null,{"$f":"IFERROR(INDEX(DetalhesDaFatura[],SMALL(IF(DetalhesDaFatura[]=rngFatura,ROW(DetalhesDaFatura[])-ROW(DetalhesDaFatura[#Headers])), ROW(3:3)), MATCH($B$14, DetalhesDaFatura[#Headers], 0)),\"\")","v":"Z4569"},{"$f":"IFERROR(INDEX(DetalhesDaFatura[],SMALL(IF(DetalhesDaFatura[]=rngFatura,ROW(DetalhesDaFatura[])-ROW(DetalhesDaFatura[#Headers])), ROW(3:3)), MATCH($C$14, DetalhesDaFatura[#Headers], 0)),\"\")","v":"Fatura 3-456-2 Dados 3"},{"$f":"IFERROR(INDEX(DetalhesDaFatura[],SMALL(IF(DetalhesDaFatura[]=rngFatura,ROW(DetalhesDaFatura[])-ROW(DetalhesDaFatura[#Headers])), ROW(3:3)), MATCH($D$14, DetalhesDaFatura[#Headers], 0)),\"\")","v":30},{"$f":"IFERROR(INDEX(DetalhesDaFatura[],SMALL(IF(DetalhesDaFatura[]=rngFatura,ROW(DetalhesDaFatura[])-ROW(DetalhesDaFatura[#Headers])), ROW(3:3)), MATCH($E$14, DetalhesDaFatura[#Headers], 0)),\"\")","v":{"v":6,"d":"R$ 6.00"}},{"$f":"IFERROR(INDEX(DetalhesDaFatura[],SMALL(IF(DetalhesDaFatura[]=rngFatura,ROW(DetalhesDaFatura[])-ROW(DetalhesDaFatura[#Headers])), ROW(3:3)), MATCH($F$14, DetalhesDaFatura[#Headers], 0)),\"\")","v":{"v":7,"d":"R$ 7.00"}},{"v":173,"d":"R$ 173.00"}]
[null,{"$f":"IFERROR(INDEX(DetalhesDaFatura[],SMALL(IF(DetalhesDaFatura[]=rngFatura,ROW(DetalhesDaFatura[])-ROW(DetalhesDaFatura[#Headers])), ROW(4:4)), MATCH($B$14, DetalhesDaFatura[#Headers], 0)),\"\")","v":"Z4570"},{"$f":"IFERROR(INDEX(DetalhesDaFatura[],SMALL(IF(DetalhesDaFatura[]=rngFatura,ROW(DetalhesDaFatura[])-ROW(DetalhesDaFatura[#Headers])), ROW(4:4)), MATCH($C$14, DetalhesDaFatura[#Headers], 0)),\"\")","v":"Fatura 3-456-2 Dados 4"},{"$f":"IFERROR(INDEX(DetalhesDaFatura[],SMALL(IF(DetalhesDaFatura[]=rngFatura,ROW(DetalhesDaFatura[])-ROW(DetalhesDaFatura[#Headers])), ROW(4:4)), MATCH($D$14, DetalhesDaFatura[#Headers], 0)),\"\")","v":40},{"$f":"IFERROR(INDEX(DetalhesDaFatura[],SMALL(IF(DetalhesDaFatura[]=rngFatura,ROW(DetalhesDaFatura[])-ROW(DetalhesDaFatura[#Headers])), ROW(4:4)), MATCH($E$14, DetalhesDaFatura[#Headers], 0)),\"\")","v":{"v":7,"d":"R$ 7.00"}},{"$f":"IFERROR(INDEX(DetalhesDaFatura[],SMALL(IF(DetalhesDaFatura[]=rngFatura,ROW(DetalhesDaFatura[])-ROW(DetalhesDaFatura[#Headers])), ROW(4:4)), MATCH($F$14, DetalhesDaFatura[#Headers], 0)),\"\")","v":{"v":0,"d":"R$ 0.00"}},{"v":280,"d":"R$ 280.00"}]
[null,{"$f":"IFERROR(INDEX(DetalhesDaFatura[],SMALL(IF(DetalhesDaFatura[]=rngFatura,ROW(DetalhesDaFatura[])-ROW(DetalhesDaFatura[#Headers])), ROW(5:5)), MATCH($B$14, DetalhesDaFatura[#Headers], 0)),\"\")","v":"Z4571"},{"$f":"IFERROR(INDEX(DetalhesDaFatura[],SMALL(IF(DetalhesDaFatura[]=rngFatura,ROW(DetalhesDaFatura[])-ROW(DetalhesDaFatura[#Headers])), ROW(5:5)), MATCH($C$14, DetalhesDaFatura[#Headers], 0)),\"\")","v":"Fatura 3-456-2 Dados 5"},{"$f":"IFERROR(INDEX(DetalhesDaFatura[],SMALL(IF(DetalhesDaFatura[]=rngFatura,ROW(DetalhesDaFatura[])-ROW(DetalhesDaFatura[#Headers])), ROW(5:5)), MATCH($D$14, DetalhesDaFatura[#Headers], 0)),\"\")","v":10},{"$f":"IFERROR(INDEX(DetalhesDaFatura[],SMALL(IF(DetalhesDaFatura[]=rngFatura,ROW(DetalhesDaFatura[])-ROW(DetalhesDaFatura[#Headers])), ROW(5:5)), MATCH($E$14, DetalhesDaFatura[#Headers], 0)),\"\")","v":{"v":4,"d":"R$ 4.00"}},{"$f":"IFERROR(INDEX(DetalhesDaFatura[],SMALL(IF(DetalhesDaFatura[]=rngFatura,ROW(DetalhesDaFatura[])-ROW(DetalhesDaFatura[#Headers])), ROW(5:5)), MATCH($F$14, DetalhesDaFatura[#Headers], 0)),\"\")","v":{"v":0,"d":"R$ 0.00"}},{"v":40,"d":"R$ 40.00"}]
[null,{"$f":"IFERROR(INDEX(DetalhesDaFatura[],SMALL(IF(DetalhesDaFatura[]=rngFatura,ROW(DetalhesDaFatura[])-ROW(DetalhesDaFatura[#Headers])), ROW(6:6)), MATCH($B$14, DetalhesDaFatura[#Headers], 0)),\"\")","v":"Z4572"},{"$f":"IFERROR(INDEX(DetalhesDaFatura[],SMALL(IF(DetalhesDaFatura[]=rngFatura,ROW(DetalhesDaFatura[])-ROW(DetalhesDaFatura[#Headers])), ROW(6:6)), MATCH($C$14, DetalhesDaFatura[#Headers], 0)),\"\")","v":"Fatura 3-456-2 Dados 6"},{"$f":"IFERROR(INDEX(DetalhesDaFatura[],SMALL(IF(DetalhesDaFatura[]=rngFatura,ROW(DetalhesDaFatura[])-ROW(DetalhesDaFatura[#Headers])), ROW(6:6)), MATCH($D$14, DetalhesDaFatura[#Headers], 0)),\"\")","v":5},{"$f":"IFERROR(INDEX(DetalhesDaFatura[],SMALL(IF(DetalhesDaFatura[]=rngFatura,ROW(DetalhesDaFatura[])-ROW(DetalhesDaFatura[#Headers])), ROW(6:6)), MATCH($E$14, DetalhesDaFatura[#Headers], 0)),\"\")","v":{"v":8,"d":"R$ 8.00"}},{"$f":"IFERROR(INDEX(DetalhesDaFatura[],SMALL(IF(DetalhesDaFatura[]=rngFatura,ROW(DetalhesDaFatura[])-ROW(DetalhesDaFatura[#Headers])), ROW(6:6)), MATCH($F$14, DetalhesDaFatura[#Headers], 0)),\"\")","v":{"v":0,"d":"R$ 0.00"}},{"v":40,"d":"R$ 40.00"}]
[null,{"$f":"IFERROR(INDEX(DetalhesDaFatura[],SMALL(IF(DetalhesDaFatura[]=rngFatura,ROW(DetalhesDaFatura[])-ROW(DetalhesDaFatura[#Headers])), ROW(7:7)), MATCH($B$14, DetalhesDaFatura[#Headers], 0)),\"\")","v":"Z4573"},{"$f":"IFERROR(INDEX(DetalhesDaFatura[],SMALL(IF(DetalhesDaFatura[]=rngFatura,ROW(DetalhesDaFatura[])-ROW(DetalhesDaFatura[#Headers])), ROW(7:7)), MATCH($C$14, DetalhesDaFatura[#Headers], 0)),\"\")","v":"Fatura 3-456-2 Dados 7"},{"$f":"IFERROR(INDEX(DetalhesDaFatura[],SMALL(IF(DetalhesDaFatura[]=rngFatura,ROW(DetalhesDaFatura[])-ROW(DetalhesDaFatura[#Headers])), ROW(7:7)), MATCH($D$14, DetalhesDaFatura[#Headers], 0)),\"\")","v":70},{"$f":"IFERROR(INDEX(DetalhesDaFatura[],SMALL(IF(DetalhesDaFatura[]=rngFatura,ROW(DetalhesDaFatura[])-ROW(DetalhesDaFatura[#Headers])), ROW(7:7)), MATCH($E$14, DetalhesDaFatura[#Headers], 0)),\"\")","v":{"v":6,"d":"R$ 6.00"}},{"$f":"IFERROR(INDEX(DetalhesDaFatura[],SMALL(IF(DetalhesDaFatura[]=rngFatura,ROW(DetalhesDaFatura[])-ROW(DetalhesDaFatura[#Headers])), ROW(7:7)), MATCH($F$14, DetalhesDaFatura[#Headers], 0)),\"\")","v":{"v":0,"d":"R$ 0.00"}},{"v":420,"d":"R$ 420.00"}]
[null,{"$f":"IFERROR(INDEX(DetalhesDaFatura[],SMALL(IF(DetalhesDaFatura[]=rngFatura,ROW(DetalhesDaFatura[])-ROW(DetalhesDaFatura[#Headers])), ROW(8:8)), MATCH($B$14, DetalhesDaFatura[#Headers], 0)),\"\")","v":"Z4574"},{"$f":"IFERROR(INDEX(DetalhesDaFatura[],SMALL(IF(DetalhesDaFatura[]=rngFatura,ROW(DetalhesDaFatura[])-ROW(DetalhesDaFatura[#Headers])), ROW(8:8)), MATCH($C$14, DetalhesDaFatura[#Headers], 0)),\"\")","v":"Fatura 3-456-2 Dados 8"},{"$f":"IFERROR(INDEX(DetalhesDaFatura[],SMALL(IF(DetalhesDaFatura[]=rngFatura,ROW(DetalhesDaFatura[])-ROW(DetalhesDaFatura[#Headers])), ROW(8:8)), MATCH($D$14, DetalhesDaFatura[#Headers], 0)),\"\")","v":25},{"$f":"IFERROR(INDEX(DetalhesDaFatura[],SMALL(IF(DetalhesDaFatura[]=rngFatura,ROW(DetalhesDaFatura[])-ROW(DetalhesDaFatura[#Headers])), ROW(8:8)), MATCH($E$14, DetalhesDaFatura[#Headers], 0)),\"\")","v":{"v":4,"d":"R$ 4.00"}},{"$f":"IFERROR(INDEX(DetalhesDaFatura[],SMALL(IF(DetalhesDaFatura[]=rngFatura,ROW(DetalhesDaFatura[])-ROW(DetalhesDaFatura[#Headers])), ROW(8:8)), MATCH($F$14, DetalhesDaFatura[#Headers], 0)),\"\")","v":{"v":0,"d":"R$ 0.00"}},{"v":100,"d":"R$ 100.00"}]
[null,{"$f":"IFERROR(INDEX(DetalhesDaFatura[],SMALL(IF(DetalhesDaFatura[]=rngFatura,ROW(DetalhesDaFatura[])-ROW(DetalhesDaFatura[#Headers])), ROW(9:9)), MATCH($B$14, DetalhesDaFatura[#Headers], 0)),\"\")","v":"Z4575"},{"$f":"IFERROR(INDEX(DetalhesDaFatura[],SMALL(IF(DetalhesDaFatura[]=rngFatura,ROW(DetalhesDaFatura[])-ROW(DetalhesDaFatura[#Headers])), ROW(9:9)), MATCH($C$14, DetalhesDaFatura[#Headers], 0)),\"\")","v":"Fatura 3-456-2 Dados 9"},{"$f":"IFERROR(INDEX(DetalhesDaFatura[],SMALL(IF(DetalhesDaFatura[]=rngFatura,ROW(DetalhesDaFatura[])-ROW(DetalhesDaFatura[#Headers])), ROW(9:9)), MATCH($D$14, DetalhesDaFatura[#Headers], 0)),\"\")","v":5},{"$f":"IFERROR(INDEX(DetalhesDaFatura[],SMALL(IF(DetalhesDaFatura[]=rngFatura,ROW(DetalhesDaFatura[])-ROW(DetalhesDaFatura[#Headers])), ROW(9:9)), MATCH($E$14, DetalhesDaFatura[#Headers], 0)),\"\")","v":{"v":7,"d":"R$ 7.00"}},{"$f":"IFERROR(INDEX(DetalhesDaFatura[],SMALL(IF(DetalhesDaFatura[]=rngFatura,ROW(DetalhesDaFatura[])-ROW(DetalhesDaFatura[#Headers])), ROW(9:9)), MATCH($F$14, DetalhesDaFatura[#Headers], 0)),\"\")","v":{"v":3,"d":"R$ 3.00"}},{"v":32,"d":"R$ 32.00"}]
[null,{"$f":"IFERROR(INDEX(DetalhesDaFatura[],SMALL(IF(DetalhesDaFatura[]=rngFatura,ROW(DetalhesDaFatura[])-ROW(DetalhesDaFatura[#Headers])), ROW(10:10)), MATCH($B$14, DetalhesDaFatura[#Headers], 0)),\"\")","v":"Z4576"},{"$f":"IFERROR(INDEX(DetalhesDaFatura[],SMALL(IF(DetalhesDaFatura[]=rngFatura,ROW(DetalhesDaFatura[])-ROW(DetalhesDaFatura[#Headers])), ROW(10:10)), MATCH($C$14, DetalhesDaFatura[#Headers], 0)),\"\")","v":"Fatura 3-456-2 Dados 10"},{"$f":"IFERROR(INDEX(DetalhesDaFatura[],SMALL(IF(DetalhesDaFatura[]=rngFatura,ROW(DetalhesDaFatura[])-ROW(DetalhesDaFatura[#Headers])), ROW(10:10)), MATCH($D$14, DetalhesDaFatura[#Headers], 0)),\"\")","v":80},{"$f":"IFERROR(INDEX(DetalhesDaFatura[],SMALL(IF(DetalhesDaFatura[]=rngFatura,ROW(DetalhesDaFatura[])-ROW(DetalhesDaFatura[#Headers])), ROW(10:10)), MATCH($E$14, DetalhesDaFatura[#Headers], 0)),\"\")","v":{"v":1,"d":"R$ 1.00"}},{"$f":"IFERROR(INDEX(DetalhesDaFatura[],SMALL(IF(DetalhesDaFatura[]=rngFatura,ROW(DetalhesDaFatura[])-ROW(DetalhesDaFatura[#Headers])), ROW(10:10)), MATCH($F$14, DetalhesDaFatura[#Headers], 0)),\"\")","v":{"v":0,"d":"R$ 0.00"}},{"v":80,"d":"R$ 80.00"}]
[null,{"$f":"IFERROR(INDEX(DetalhesDaFatura[],SMALL(IF(DetalhesDaFatura[]=rngFatura,ROW(DetalhesDaFatura[])-ROW(DetalhesDaFatura[#Headers])), ROW(11:11)), MATCH($B$14, DetalhesDaFatura[#Headers], 0)),\"\")","v":"Z4577"},{"$f":"IFERROR(INDEX(DetalhesDaFatura[],SMALL(IF(DetalhesDaFatura[]=rngFatura,ROW(DetalhesDaFatura[])-ROW(DetalhesDaFatura[#Headers])), ROW(11:11)), MATCH($C$14, DetalhesDaFatura[#Headers], 0)),\"\")","v":"Fatura 3-456-2 Dados 11"},{"$f":"IFERROR(INDEX(DetalhesDaFatura[],SMALL(IF(DetalhesDaFatura[]=rngFatura,ROW(DetalhesDaFatura[])-ROW(DetalhesDaFatura[#Headers])), ROW(11:11)), MATCH($D$14, DetalhesDaFatura[#Headers], 0)),\"\")","v":65},{"$f":"IFERROR(INDEX(DetalhesDaFatura[],SMALL(IF(DetalhesDaFatura[]=rngFatura,ROW(DetalhesDaFatura[])-ROW(DetalhesDaFatura[#Headers])), ROW(11:11)), MATCH($E$14, DetalhesDaFatura[#Headers], 0)),\"\")","v":{"v":7,"d":"R$ 7.00"}},{"$f":"IFERROR(INDEX(DetalhesDaFatura[],SMALL(IF(DetalhesDaFatura[]=rngFatura,ROW(DetalhesDaFatura[])-ROW(DetalhesDaFatura[#Headers])), ROW(11:11)), MATCH($F$14, DetalhesDaFatura[#Headers], 0)),\"\")","v":{"v":0,"d":"R$ 0.00"}},{"v":455,"d":"R$ 455.00"}]
[null,{"$f":"IFERROR(INDEX(DetalhesDaFatura[],SMALL(IF(DetalhesDaFatura[]=rngFatura,ROW(DetalhesDaFatura[])-ROW(DetalhesDaFatura[#Headers])), ROW(12:12)), MATCH($B$14, DetalhesDaFatura[#Headers], 0)),\"\")","v":"Z4578"},{"$f":"IFERROR(INDEX(DetalhesDaFatura[],SMALL(IF(DetalhesDaFatura[]=rngFatura,ROW(DetalhesDaFatura[])-ROW(DetalhesDaFatura[#Headers])), ROW(12:12)), MATCH($C$14, DetalhesDaFatura[#Headers], 0)),\"\")","v":"Fatura 3-456-2 Dados 12"},{"$f":"IFERROR(INDEX(DetalhesDaFatura[],SMALL(IF(DetalhesDaFatura[]=rngFatura,ROW(DetalhesDaFatura[])-ROW(DetalhesDaFatura[#Headers])), ROW(12:12)), MATCH($D$14, DetalhesDaFatura[#Headers], 0)),\"\")","v":44},{"$f":"IFERROR(INDEX(DetalhesDaFatura[],SMALL(IF(DetalhesDaFatura[]=rngFatura,ROW(DetalhesDaFatura[])-ROW(DetalhesDaFatura[#Headers])), ROW(12:12)), MATCH($E$14, DetalhesDaFatura[#Headers], 0)),\"\")","v":{"v":1,"d":"R$ 1.00"}},{"$f":"IFERROR(INDEX(DetalhesDaFatura[],SMALL(IF(DetalhesDaFatura[]=rngFatura,ROW(DetalhesDaFatura[])-ROW(DetalhesDaFatura[#Headers])), ROW(12:12)), MATCH($F$14, DetalhesDaFatura[#Headers], 0)),\"\")","v":{"v":0,"d":"R$ 0.00"}},{"v":44,"d":"R$ 44.00"}]
[null,{"$f":"IFERROR(INDEX(DetalhesDaFatura[],SMALL(IF(DetalhesDaFatura[]=rngFatura,ROW(DetalhesDaFatura[])-ROW(DetalhesDaFatura[#Headers])), ROW(13:13)), MATCH($B$14, DetalhesDaFatura[#Headers], 0)),\"\")","v":""},{"$f":"IFERROR(INDEX(DetalhesDaFatura[],SMALL(IF(DetalhesDaFatura[]=rngFatura,ROW(DetalhesDaFatura[])-ROW(DetalhesDaFatura[#Headers])), ROW(13:13)), MATCH($C$14, DetalhesDaFatura[#Headers], 0)),\"\")","v":""},{"$f":"IFERROR(INDEX(DetalhesDaFatura[],SMALL(IF(DetalhesDaFatura[]=rngFatura,ROW(DetalhesDaFatura[])-ROW(DetalhesDaFatura[#Headers])), ROW(13:13)), MATCH($D$14, DetalhesDaFatura[#Headers], 0)),\"\")","v":""},{"$f":"IFERROR(INDEX(DetalhesDaFatura[],SMALL(IF(DetalhesDaFatura[]=rngFatura,ROW(DetalhesDaFatura[])-ROW(DetalhesDaFatura[#Headers])), ROW(13:13)), MATCH($E$14, DetalhesDaFatura[#Headers], 0)),\"\")","v":""},{"$f":"IFERROR(INDEX(DetalhesDaFatura[],SMALL(IF(DetalhesDaFatura[]=rngFatura,ROW(DetalhesDaFatura[])-ROW(DetalhesDaFatura[#Headers])), ROW(13:13)), MATCH($F$14, DetalhesDaFatura[#Headers], 0)),\"\")","v":""},""]
[null,{"$f":"IFERROR(INDEX(DetalhesDaFatura[],SMALL(IF(DetalhesDaFatura[]=rngFatura,ROW(DetalhesDaFatura[])-ROW(DetalhesDaFatura[#Headers])), ROW(14:14)), MATCH($B$14, DetalhesDaFatura[#Headers], 0)),\"\")","v":""},{"$f":"IFERROR(INDEX(DetalhesDaFatura[],SMALL(IF(DetalhesDaFatura[]=rngFatura,ROW(DetalhesDaFatura[])-ROW(DetalhesDaFatura[#Headers])), ROW(14:14)), MATCH($C$14, DetalhesDaFatura[#Headers], 0)),\"\")","v":""},{"$f":"IFERROR(INDEX(DetalhesDaFatura[],SMALL(IF(DetalhesDaFatura[]=rngFatura,ROW(DetalhesDaFatura[])-ROW(DetalhesDaFatura[#Headers])), ROW(14:14)), MATCH($D$14, DetalhesDaFatura[#Headers], 0)),\"\")","v":""},{"$f":"IFERROR(INDEX(DetalhesDaFatura[],SMALL(IF(DetalhesDaFatura[]=rngFatura,ROW(DetalhesDaFatura[])-ROW(DetalhesDaFatura[#Headers])), ROW(14:14)), MATCH($E$14, DetalhesDaFatura[#Headers], 0)),\"\")","v":""},{"$f":"IFERROR(INDEX(DetalhesDaFatura[],SMALL(IF(DetalhesDaFatura[]=rngFatura,ROW(DetalhesDaFatura[])-ROW(DetalhesDaFatura[#Headers])), ROW(14:14)), MATCH($F$14, DetalhesDaFatura[#Headers], 0)),\"\")","v":""},""]
[null,{"$f":"IFERROR(INDEX(DetalhesDaFatura[],SMALL(IF(DetalhesDaFatura[]=rngFatura,ROW(DetalhesDaFatura[])-ROW(DetalhesDaFatura[#Headers])), ROW(15:15)), MATCH($B$14, DetalhesDaFatura[#Headers], 0)),\"\")","v":""},{"$f":"IFERROR(INDEX(DetalhesDaFatura[],SMALL(IF(DetalhesDaFatura[]=rngFatura,ROW(DetalhesDaFatura[])-ROW(DetalhesDaFatura[#Headers])), ROW(15:15)), MATCH($C$14, DetalhesDaFatura[#Headers], 0)),\"\")","v":""},{"$f":"IFERROR(INDEX(DetalhesDaFatura[],SMALL(IF(DetalhesDaFatura[]=rngFatura,ROW(DetalhesDaFatura[])-ROW(DetalhesDaFatura[#Headers])), ROW(15:15)), MATCH($D$14, DetalhesDaFatura[#Headers], 0)),\"\")","v":""},{"$f":"IFERROR(INDEX(DetalhesDaFatura[],SMALL(IF(DetalhesDaFatura[]=rngFatura,ROW(DetalhesDaFatura[])-ROW(DetalhesDaFatura[#Headers])), ROW(15:15)), MATCH($E$14, DetalhesDaFatura[#Headers], 0)),\"\")","v":""},{"$f":"IFERROR(INDEX(DetalhesDaFatura[],SMALL(IF(DetalhesDaFatura[]=rngFatura,ROW(DetalhesDaFatura[])-ROW(DetalhesDaFatura[#Headers])), ROW(15:15)), MATCH($F$14, DetalhesDaFatura[#Headers], 0)),\"\")","v":""},""]
[null,{"$f":"IFERROR(INDEX(DetalhesDaFatura[],SMALL(IF(DetalhesDaFatura[]=rngFatura,ROW(DetalhesDaFatura[])-ROW(DetalhesDaFatura[#Headers])), ROW(16:16)), MATCH($B$14, DetalhesDaFatura[#Headers], 0)),\"\")","v":""},{"$f":"IFERROR(INDEX(DetalhesDaFatura[],SMALL(IF(DetalhesDaFatura[]=rngFatura,ROW(DetalhesDaFatura[])-ROW(DetalhesDaFatura[#Headers])), ROW(16:16)), MATCH($C$14, DetalhesDaFatura[#Headers], 0)),\"\")","v":""},{"$f":"IFERROR(INDEX(DetalhesDaFatura[],SMALL(IF(DetalhesDaFatura[]=rngFatura,ROW(DetalhesDaFatura[])-ROW(DetalhesDaFatura[#Headers])), ROW(16:16)), MATCH($D$14, DetalhesDaFatura[#Headers], 0)),\"\")","v":""},{"$f":"IFERROR(INDEX(DetalhesDaFatura[],SMALL(IF(DetalhesDaFatura[]=rngFatura,ROW(DetalhesDaFatura[])-ROW(DetalhesDaFatura[#Headers])), ROW(16:16)), MATCH($E$14, DetalhesDaFatura[#Headers], 0)),\"\")","v":""},{"$f":"IFERROR(INDEX(DetalhesDaFatura[],SMALL(IF(DetalhesDaFatura[]=rngFatura,ROW(DetalhesDaFatura[])-ROW(DetalhesDaFatura[#Headers])), ROW(16:16)), MATCH($F$14, DetalhesDaFatura[#Headers], 0)),\"\")","v":""},""]
[null,{"$f":"IFERROR(INDEX(DetalhesDaFatura[],SMALL(IF(DetalhesDaFatura[]=rngFatura,ROW(DetalhesDaFatura[])-ROW(DetalhesDaFatura[#Headers])), ROW(17:17)), MATCH($B$14, DetalhesDaFatura[#Headers], 0)),\"\")","v":""},{"$f":"IFERROR(INDEX(DetalhesDaFatura[],SMALL(IF(DetalhesDaFatura[]=rngFatura,ROW(DetalhesDaFatura[])-ROW(DetalhesDaFatura[#Headers])), ROW(17:17)), MATCH($C$14, DetalhesDaFatura[#Headers], 0)),\"\")","v":""},{"$f":"IFERROR(INDEX(DetalhesDaFatura[],SMALL(IF(DetalhesDaFatura[]=rngFatura,ROW(DetalhesDaFatura[])-ROW(DetalhesDaFatura[#Headers])), ROW(17:17)), MATCH($D$14, DetalhesDaFatura[#Headers], 0)),\"\")","v":""},{"$f":"IFERROR(INDEX(DetalhesDaFatura[],SMALL(IF(DetalhesDaFatura[]=rngFatura,ROW(DetalhesDaFatura[])-ROW(DetalhesDaFatura[#Headers])), ROW(17:17)), MATCH($E$14, DetalhesDaFatura[#Headers], 0)),\"\")","v":""},{"$f":"IFERROR(INDEX(DetalhesDaFatura[],SMALL(IF(DetalhesDaFatura[]=rngFatura,ROW(DetalhesDaFatura[])-ROW(DetalhesDaFatura[#Headers])), ROW(17:17)), MATCH($F$14, DetalhesDaFatura[#Headers], 0)),\"\")","v":""},""]
[null,{"$f":"IFERROR(INDEX(DetalhesDaFatura[],SMALL(IF(DetalhesDaFatura[]=rngFatura,ROW(DetalhesDaFatura[])-ROW(DetalhesDaFatura[#Headers])), ROW(18:18)), MATCH($B$14, DetalhesDaFatura[#Headers], 0)),\"\")","v":""},{"$f":"IFERROR(INDEX(DetalhesDaFatura[],SMALL(IF(DetalhesDaFatura[]=rngFatura,ROW(DetalhesDaFatura[])-ROW(DetalhesDaFatura[#Headers])), ROW(18:18)), MATCH($C$14, DetalhesDaFatura[#Headers], 0)),\"\")","v":""},{"$f":"IFERROR(INDEX(DetalhesDaFatura[],SMALL(IF(DetalhesDaFatura[]=rngFatura,ROW(DetalhesDaFatura[])-ROW(DetalhesDaFatura[#Headers])), ROW(18:18)), MATCH($D$14, DetalhesDaFatura[#Headers], 0)),\"\")","v":""},{"$f":"IFERROR(INDEX(DetalhesDaFatura[],SMALL(IF(DetalhesDaFatura[]=rngFatura,ROW(DetalhesDaFatura[])-ROW(DetalhesDaFatura[#Headers])), ROW(18:18)), MATCH($E$14, DetalhesDaFatura[#Headers], 0)),\"\")","v":""},{"$f":"IFERROR(INDEX(DetalhesDaFatura[],SMALL(IF(DetalhesDaFatura[]=rngFatura,ROW(DetalhesDaFatura[])-ROW(DetalhesDaFatura[#Headers])), ROW(18:18)), MATCH($F$14, DetalhesDaFatura[#Headers], 0)),\"\")","v":""},""]
[null,{"$f":"IFERROR(INDEX(DetalhesDaFatura[],SMALL(IF(DetalhesDaFatura[]=rngFatura,ROW(DetalhesDaFatura[])-ROW(DetalhesDaFatura[#Headers])), ROW(19:19)), MATCH($B$14, DetalhesDaFatura[#Headers], 0)),\"\")","v":""},{"$f":"IFERROR(INDEX(DetalhesDaFatura[],SMALL(IF(DetalhesDaFatura[]=rngFatura,ROW(DetalhesDaFatura[])-ROW(DetalhesDaFatura[#Headers])), ROW(19:19)), MATCH($C$14, DetalhesDaFatura[#Headers], 0)),\"\")","v":""},{"$f":"IFERROR(INDEX(DetalhesDaFatura[],SMALL(IF(DetalhesDaFatura[]=rngFatura,ROW(DetalhesDaFatura[])-ROW(DetalhesDaFatura[#Headers])), ROW(19:19)), MATCH($D$14, DetalhesDaFatura[#Headers], 0)),\"\")","v":""},{"$f":"IFERROR(INDEX(DetalhesDaFatura[],SMALL(IF(DetalhesDaFatura[]=rngFatura,ROW(DetalhesDaFatura[])-ROW(DetalhesDaFatura[#Headers])), ROW(19:19)), MATCH($E$14, DetalhesDaFatura[#Headers], 0)),\"\")","v":""},{"$f":"IFERROR(INDEX(DetalhesDaFatura[],SMALL(IF(DetalhesDaFatura[]=rngFatura,ROW(DetalhesDaFatura[])-ROW(DetalhesDaFatura[#Headers])), ROW(19:19)), MATCH($F$14, DetalhesDaFatura[#Headers], 0)),\"\")","v":""},""]
[null,{"$f":"IFERROR(INDEX(DetalhesDaFatura[],SMALL(IF(DetalhesDaFatura[]=rngFatura,ROW(DetalhesDaFatura[])-ROW(DetalhesDaFatura[#Headers])), ROW(20:20)), MATCH($B$14, DetalhesDaFatura[#Headers], 0)),\"\")","v":""},{"$f":"IFERROR(INDEX(DetalhesDaFatura[],SMALL(IF(DetalhesDaFatura[]=rngFatura,ROW(DetalhesDaFatura[])-ROW(DetalhesDaFatura[#Headers])), ROW(20:20)), MATCH($C$14, DetalhesDaFatura[#Headers], 0)),\"\")","v":""},{"$f":"IFERROR(INDEX(DetalhesDaFatura[],SMALL(IF(DetalhesDaFatura[]=rngFatura,ROW(DetalhesDaFatura[])-ROW(DetalhesDaFatura[#Headers])), ROW(20:20)), MATCH($D$14, DetalhesDaFatura[#Headers], 0)),\"\")","v":""},{"$f":"IFERROR(INDEX(DetalhesDaFatura[],SMALL(IF(DetalhesDaFatura[]=rngFatura,ROW(DetalhesDaFatura[])-ROW(DetalhesDaFatura[#Headers])), ROW(20:20)), MATCH($E$14, DetalhesDaFatura[#Headers], 0)),\"\")","v":""},{"$f":"IFERROR(INDEX(DetalhesDaFatura[],SMALL(IF(DetalhesDaFatura[]=rngFatura,ROW(DetalhesDaFatura[])-ROW(DetalhesDaFatura[#Headers])), ROW(20:20)), MATCH($F$14, DetalhesDaFatura[#Headers], 0)),\"\")","v":""},""]
[null,{"$f":"IFERROR(INDEX(DetalhesDaFatura[],SMALL(IF(DetalhesDaFatura[]=rngFatura,ROW(DetalhesDaFatura[])-ROW(DetalhesDaFatura[#Headers])), ROW(21:21)), MATCH($B$14, DetalhesDaFatura[#Headers], 0)),\"\")","v":""},{"$f":"IFERROR(INDEX(DetalhesDaFatura[],SMALL(IF(DetalhesDaFatura[]=rngFatura,ROW(DetalhesDaFatura[])-ROW(DetalhesDaFatura[#Headers])), ROW(21:21)), MATCH($C$14, DetalhesDaFatura[#Headers], 0)),\"\")","v":""},{"$f":"IFERROR(INDEX(DetalhesDaFatura[],SMALL(IF(DetalhesDaFatura[]=rngFatura,ROW(DetalhesDaFatura[])-ROW(DetalhesDaFatura[#Headers])), ROW(21:21)), MATCH($D$14, DetalhesDaFatura[#Headers], 0)),\"\")","v":""},{"$f":"IFERROR(INDEX(DetalhesDaFatura[],SMALL(IF(DetalhesDaFatura[]=rngFatura,ROW(DetalhesDaFatura[])-ROW(DetalhesDaFatura[#Headers])), ROW(21:21)), MATCH($E$14, DetalhesDaFatura[#Headers], 0)),\"\")","v":""},{"$f":"IFERROR(INDEX(DetalhesDaFatura[],SMALL(IF(DetalhesDaFatura[]=rngFatura,ROW(DetalhesDaFatura[])-ROW(DetalhesDaFatura[#Headers])), ROW(21:21)), MATCH($F$14, DetalhesDaFatura[#Headers], 0)),\"\")","v":""},""]
[]
[{"$nulls":4},"Subtotal da Fatura",null,{"$f":"SUM(FaturaProjeto[Preço])","v":{"v":1819,"d":"R$ 1,819.00"}}]
[null,"Total devido em <#> dias. Contas em atraso devido a um encargo de serviço de <#>% por mês.",null,null,{"$f":"IFERROR(\"Imposto sobre Vendas (\" & TEXT(VLOOKUP(rngFatura,FaturasPrincipal[],5),\"0.00%\") & \")\",\"Taxa de imposto sobre vendas\")","v":"Imposto sobre Vendas (8.75%)"},null,{"$f":"_xlfn.SINGLE(IFERROR(G36*VLOOKUP(_xlfn.SINGLE(rngFatura),FaturasPrincipal[],5),0))","v":{"$error":"#NAME?"}}]
[{"$nulls":4},"Outros",null,{"$f":"_xlfn.SINGLE(IFERROR(VLOOKUP(_xlfn.SINGLE(rngFatura),FaturasPrincipal[],6),0))","v":{"$error":"#NAME?"}}]
[null,{"$f":"\"Colocar todos os cheques nominais à ordem de \"&NomeDaEmpresa&\".\"","v":"Colocar todos os cheques nominais à ordem de NOME DA EMPRESA."},null,null,"Depósito recebido",null,{"$f":"_xlfn.SINGLE(IFERROR(VLOOKUP(_xlfn.SINGLE(rngFatura),FaturasPrincipal[],7),0))","v":{"$error":"#NAME?"}}]
[null,"Obrigado pela preferência!",null,null,"TOTAL",null,{"$f":"(G36+G37+G38)-G39","v":{"$error":"#NAME?"}}]

{"sheet":"Clientes","index":1,"n_rows":7,"n_cols":13,"rows_kept":7}
[{"$nulls":12}," "]
[]
[]
[null,"Pesquisar","Nº da Empresa","Nome da empresa","Nome do Contato","Endereço","Cidade","Estado","CEP","Telefone","Email","Fax"]
[null,{"$f":"C5& \" - \"&D5","v":"1 - Tailspin Toys "},1,"Tailspin Toys ","Lara Cardoso","Rua Ipê-amarelo, 111","São Paulo","SP",12345,"(55) 3555-0178","pessoa@example.com","(55) 3693-9595"]
[null,"2 - Contoso, Ltd",2,"Contoso, Ltd","Alice Pena","Rua Castanheira, 555","Campinas","SP",98765,"(55) 3555-0189","pessoa@exemplo.com","432-555-0123"]
[null,"Total",{"$f":"\"Total de Clientes: \"&SUBTOTAL(103,ListaClientes[Nº da Empresa])","v":"Total de Clientes: 2"}]

{"sheet":"Faturas – Principal","index":2,"n_rows":7,"n_cols":12,"rows_kept":7}
[{"$nulls":11}," "]
[]
[]
[null,"Nº da Fatura","EMPRESA","Data da fatura","Descrição do projeto","Alíquota de Imposto","Outros","Depósito","Total de detalhes","Total da fatura","Anotações"]
[null,"3-456-1","1 - Tailspin Toys ",{"$f":"TODAY()","v":"2019-10-22"},"Projeto 1",{"v":0.0875,"d":"8.75%"},{"v":100,"d":"R$ 100.00"},{"v":100,"d":"R$ 100.00"},{"$f":"SUMIF(DetalhesDaFatura[Nº da fatura],\"=\"&FaturasPrincipal[[#This Row],[Nº da Fatura]],DetalhesDaFatura[Total])","v":{"v":2660,"d":"R$ 2,660.00"}},{"$f":"(FaturasPrincipal[[#This Row],[Total de detalhes]]*(1+FaturasPrincipal[[#This Row],[Alíquota de Imposto]]))+FaturasPrincipal[[#This Row],[Outros]]-FaturasPrincipal[[#This Row],[Depósito]]","v":{"v":2892.7499999999995,"d":"R$ 2,892.75"}}]
[null,"3-456-2","2 - Contoso, Ltd",{"$f":"TODAY()+10","v":"2019-11-01"},"Projeto 2",{"v":0.0875,"d":"8.75%"},null,null,{"$f":"SUMIF(DetalhesDaFatura[Nº da fatura],\"=\"&FaturasPrincipal[[#This Row],[Nº da Fatura]],DetalhesDaFatura[Total])","v":{"v":2014,"d":"R$ 2,014.00"}},{"$f":"(FaturasPrincipal[[#This Row],[Total de detalhes]]*(1+FaturasPrincipal[[#This Row],[Alíquota de Imposto]]))+FaturasPrincipal[[#This Row],[Outros]]-FaturasPrincipal[[#This Row],[Depósito]]","v":{"v":2190.225,"d":"R$ 2,190.23"}}]
[null,{"$f":"\"Faturas totais: \"&SUBTOTAL(103,FaturasPrincipal[Nº da Fatura])","v":"Faturas totais: 2"},{"$nulls":3},"Totais:",{"$f":"SUBTOTAL(109,FaturasPrincipal[Outros])","v":{"v":100,"d":"R$ 100.00"}},{"$f":"SUBTOTAL(109,FaturasPrincipal[Depósito])","v":{"v":100,"d":"R$ 100.00"}},{"$f":"SUBTOTAL(109,FaturasPrincipal[Total de detalhes])","v":{"v":4674,"d":"R$ 4,674.00"}},{"$f":"SUBTOTAL(109,FaturasPrincipal[Total da fatura])","v":{"v":5082.974999999999,"d":"R$ 5,082.98"}}]

{"sheet":"Detalhes da fatura","index":3,"n_rows":36,"n_cols":9,"rows_kept":36}
[{"$nulls":8}," "]
[]
[]
[null,"Descrição","Nº da fatura","Nº do item","Qtd.","Preço unitário","Desconto","Total"]
[null,"Fatura 3-456-1 Dados 1","3-456-1",1,1,{"v":1,"d":"R$ 1.00"},{"v":1,"d":"R$ 1.00"},{"$f":"(DetalhesDaFatura[[#This Row],[Qtd.]]*DetalhesDaFatura[[#This Row],[Preço unitário]])-DetalhesDaFatura[[#This Row],[Desconto]]","v":{"v":0,"d":"R$ 0.00"}}]
[null,"Fatura 3-456-1 Dados 2","3-456-1",2,2,{"v":2,"d":"R$ 2.00"},{"v":2,"d":"R$ 2.00"},{"$f":"(DetalhesDaFatura[[#This Row],[Qtd.]]*DetalhesDaFatura[[#This Row],[Preço unitário]])-DetalhesDaFatura[[#This Row],[Desconto]]","v":{"v":2,"d":"R$ 2.00"}}]
[null,"Fatura 3-456-1 Dados 3","3-456-1",3,3,{"v":3,"d":"R$ 3.00"},{"v":3,"d":"R$ 3.00"},{"$f":"(DetalhesDaFatura[[#This Row],[Qtd.]]*DetalhesDaFatura[[#This Row],[Preço unitário]])-DetalhesDaFatura[[#This Row],[Desconto]]","v":{"v":6,"d":"R$ 6.00"}}]
[null,"Fatura 3-456-1 Dados 4","3-456-1",4,4,{"v":4,"d":"R$ 4.00"},{"v":4,"d":"R$ 4.00"},{"$f":"(DetalhesDaFatura[[#This Row],[Qtd.]]*DetalhesDaFatura[[#This Row],[Preço unitário]])-DetalhesDaFatura[[#This Row],[Desconto]]","v":{"v":12,"d":"R$ 12.00"}}]
[null,"Fatura 3-456-1 Dados 5","3-456-1",5,5,{"v":5,"d":"R$ 5.00"},{"v":5,"d":"R$ 5.00"},{"$f":"(DetalhesDaFatura[[#This Row],[Qtd.]]*DetalhesDaFatura[[#This Row],[Preço unitário]])-DetalhesDaFatura[[#This Row],[Desconto]]","v":{"v":20,"d":"R$ 20.00"}}]
[null,"Fatura 3-456-1 Dados 6","3-456-1",6,6,{"v":6,"d":"R$ 6.00"},{"v":6,"d":"R$ 6.00"},{"$f":"(DetalhesDaFatura[[#This Row],[Qtd.]]*DetalhesDaFatura[[#This Row],[Preço unitário]])-DetalhesDaFatura[[#This Row],[Desconto]]","v":{"v":30,"d":"R$ 30.00"}}]
[null,"Fatura 3-456-1 Dados 7","3-456-1",7,7,{"v":7,"d":"R$ 7.00"},{"v":7,"d":"R$ 7.00"},{"$f":"(DetalhesDaFatura[[#This Row],[Qtd.]]*DetalhesDaFatura[[#This Row],[Preço unitário]])-DetalhesDaFatura[[#This Row],[Desconto]]","v":{"v":42,"d":"R$ 42.00"}}]
[null,"Fatura 3-456-1 Dados 8","3-456-1",8,8,{"v":8,"d":"R$ 8.00"},{"v":8,"d":"R$ 8.00"},{"$f":"(DetalhesDaFatura[[#This Row],[Qtd.]]*DetalhesDaFatura[[#This Row],[Preço unitário]])-DetalhesDaFatura[[#This Row],[Desconto]]","v":{"v":56,"d":"R$ 56.00"}}]
[null,"Fatura 3-456-1 Dados 9","3-456-1",9,9,{"v":9,"d":"R$ 9.00"},{"v":9,"d":"R$ 9.00"},{"$f":"(DetalhesDaFatura[[#This Row],[Qtd.]]*DetalhesDaFatura[[#This Row],[Preço unitário]])-DetalhesDaFatura[[#This Row],[Desconto]]","v":{"v":72,"d":"R$ 72.00"}}]
[null,"Fatura 3-456-1 Dados 10","3-456-1",10,10,{"v":10,"d":"R$ 10.00"},{"v":10,"d":"R$ 10.00"},{"$f":"(DetalhesDaFatura[[#This Row],[Qtd.]]*DetalhesDaFatura[[#This Row],[Preço unitário]])-DetalhesDaFatura[[#This Row],[Desconto]]","v":{"v":90,"d":"R$ 90.00"}}]
[null,"Fatura 3-456-1 Dados 11","3-456-1",11,11,{"v":11,"d":"R$ 11.00"},{"v":11,"d":"R$ 11.00"},{"$f":"(DetalhesDaFatura[[#This Row],[Qtd.]]*DetalhesDaFatura[[#This Row],[Preço unitário]])-DetalhesDaFatura[[#This Row],[Desconto]]","v":{"v":110,"d":"R$ 110.00"}}]
[null,"Fatura 3-456-1 Dados 12","3-456-1",12,12,{"v":12,"d":"R$ 12.00"},{"v":12,"d":"R$ 12.00"},{"$f":"(DetalhesDaFatura[[#This Row],[Qtd.]]*DetalhesDaFatura[[#This Row],[Preço unitário]])-DetalhesDaFatura[[#This Row],[Desconto]]","v":{"v":132,"d":"R$ 132.00"}}]
[null,"Fatura 3-456-1 Dados 13","3-456-1",13,13,{"v":13,"d":"R$ 13.00"},{"v":13,"d":"R$ 13.00"},{"$f":"(DetalhesDaFatura[[#This Row],[Qtd.]]*DetalhesDaFatura[[#This Row],[Preço unitário]])-DetalhesDaFatura[[#This Row],[Desconto]]","v":{"v":156,"d":"R$ 156.00"}}]
[null,"Fatura 3-456-1 Dados 14","3-456-1",14,14,{"v":14,"d":"R$ 14.00"},{"v":14,"d":"R$ 14.00"},{"$f":"(DetalhesDaFatura[[#This Row],[Qtd.]]*DetalhesDaFatura[[#This Row],[Preço unitário]])-DetalhesDaFatura[[#This Row],[Desconto]]","v":{"v":182,"d":"R$ 182.00"}}]
[null,"Fatura 3-456-1 Dados 15","3-456-1",15,15,{"v":15,"d":"R$ 15.00"},{"v":15,"d":"R$ 15.00"},{"$f":"(DetalhesDaFatura[[#This Row],[Qtd.]]*DetalhesDaFatura[[#This Row],[Preço unitário]])-DetalhesDaFatura[[#This Row],[Desconto]]","v":{"v":210,"d":"R$ 210.00"}}]
[null,"Fatura 3-456-1 Dados 16","3-456-1",16,16,{"v":16,"d":"R$ 16.00"},{"v":16,"d":"R$ 16.00"},{"$f":"(DetalhesDaFatura[[#This Row],[Qtd.]]*DetalhesDaFatura[[#This Row],[Preço unitário]])-DetalhesDaFatura[[#This Row],[Desconto]]","v":{"v":240,"d":"R$ 240.00"}}]
[null,"Fatura 3-456-1 Dados 17","3-456-1",17,17,{"v":17,"d":"R$ 17.00"},{"v":17,"d":"R$ 17.00"},{"$f":"(DetalhesDaFatura[[#This Row],[Qtd.]]*DetalhesDaFatura[[#This Row],[Preço unitário]])-DetalhesDaFatura[[#This Row],[Desconto]]","v":{"v":272,"d":"R$ 272.00"}}]
[null,"Fatura 3-456-1 Dados 18","3-456-1",18,18,{"v":18,"d":"R$ 18.00"},{"v":18,"d":"R$ 18.00"},{"$f":"(DetalhesDaFatura[[#This Row],[Qtd.]]*DetalhesDaFatura[[#This Row],[Preço unitário]])-DetalhesDaFatura[[#This Row],[Desconto]]","v":{"v":306,"d":"R$ 306.00"}}]
[null,"Fatura 3-456-1 Dados 19","3-456-1",19,19,{"v":19,"d":"R$ 19.00"},{"v":19,"d":"R$ 19.00"},{"$f":"(DetalhesDaFatura[[#This Row],[Qtd.]]*DetalhesDaFatura[[#This Row],[Preço unitário]])-DetalhesDaFatura[[#This Row],[Desconto]]","v":{"v":342,"d":"R$ 342.00"}}]
[null,"Fatura 3-456-1 Dados 20","3-456-1",20,20,{"v":20,"d":"R$ 20.00"},{"v":20,"d":"R$ 20.00"},{"$f":"(DetalhesDaFatura[[#This Row],[Qtd.]]*DetalhesDaFatura[[#This Row],[Preço unitário]])-DetalhesDaFatura[[#This Row],[Desconto]]","v":{"v":380,"d":"R$ 380.00"}}]
[null,"Fatura 3-456-2 Dados 1","3-456-2","Z4567",39,{"v":5,"d":"R$ 5.00"},null,{"$f":"(DetalhesDaFatura[[#This Row],[Qtd.]]*DetalhesDaFatura[[#This Row],[Preço unitário]])-DetalhesDaFatura[[#This Row],[Desconto]]","v":{"v":195,"d":"R$ 195.00"}}]
[null,"Fatura 3-456-2 Dados 2","3-456-2","Z4568",40,{"v":4,"d":"R$ 4.00"},{"v":5,"d":"R$ 5.00"},{"$f":"(DetalhesDaFatura[[#This Row],[Qtd.]]*DetalhesDaFatura[[#This Row],[Preço unitário]])-DetalhesDaFatura[[#This Row],[Desconto]]","v":{"v":155,"d":"R$ 155.00"}}]
[null,"Fatura 3-456-2 Dados 3","3-456-2","Z4569",30,{"v":6,"d":"R$ 6.00"},{"v":7,"d":"R$ 7.00"},{"$f":"(DetalhesDaFatura[[#This Row],[Qtd.]]*DetalhesDaFatura[[#This Row],[Preço unitário]])-DetalhesDaFatura[[#This Row],[Desconto]]","v":{"v":173,"d":"R$ 173.00"}}]
[null,"Fatura 3-456-2 Dados 4","3-456-2","Z4570",40,{"v":7,"d":"R$ 7.00"},null,{"$f":"(DetalhesDaFatura[[#This Row],[Qtd.]]*DetalhesDaFatura[[#This Row],[Preço unitário]])-DetalhesDaFatura[[#This Row],[Desconto]]","v":{"v":280,"d":"R$ 280.00"}}]
[null,"Fatura 3-456-2 Dados 5","3-456-2","Z4571",10,{"v":4,"d":"R$ 4.00"},null,{"$f":"(DetalhesDaFatura[[#This Row],[Qtd.]]*DetalhesDaFatura[[#This Row],[Preço unitário]])-DetalhesDaFatura[[#This Row],[Desconto]]","v":{"v":40,"d":"R$ 40.00"}}]
[null,"Fatura 3-456-2 Dados 6","3-456-2","Z4572",5,{"v":8,"d":"R$ 8.00"},null,{"$f":"(DetalhesDaFatura[[#This Row],[Qtd.]]*DetalhesDaFatura[[#This Row],[Preço unitário]])-DetalhesDaFatura[[#This Row],[Desconto]]","v":{"v":40,"d":"R$ 40.00"}}]
[null,"Fatura 3-456-2 Dados 7","3-456-2","Z4573",70,{"v":6,"d":"R$ 6.00"},null,{"$f":"(DetalhesDaFatura[[#This Row],[Qtd.]]*DetalhesDaFatura[[#This Row],[Preço unitário]])-DetalhesDaFatura[[#This Row],[Desconto]]","v":{"v":420,"d":"R$ 420.00"}}]
[null,"Fatura 3-456-2 Dados 8","3-456-2","Z4574",25,{"v":4,"d":"R$ 4.00"},null,{"$f":"(DetalhesDaFatura[[#This Row],[Qtd.]]*DetalhesDaFatura[[#This Row],[Preço unitário]])-DetalhesDaFatura[[#This Row],[Desconto]]","v":{"v":100,"d":"R$ 100.00"}}]
[null,"Fatura 3-456-2 Dados 9","3-456-2","Z4575",5,{"v":7,"d":"R$ 7.00"},{"v":3,"d":"R$ 3.00"},{"$f":"(DetalhesDaFatura[[#This Row],[Qtd.]]*DetalhesDaFatura[[#This Row],[Preço unitário]])-DetalhesDaFatura[[#This Row],[Desconto]]","v":{"v":32,"d":"R$ 32.00"}}]
[null,"Fatura 3-456-2 Dados 10","3-456-2","Z4576",80,{"v":1,"d":"R$ 1.00"},null,{"$f":"(DetalhesDaFatura[[#This Row],[Qtd.]]*DetalhesDaFatura[[#This Row],[Preço unitário]])-DetalhesDaFatura[[#This Row],[Desconto]]","v":{"v":80,"d":"R$ 80.00"}}]
[null,"Fatura 3-456-2 Dados 11","3-456-2","Z4577",65,{"v":7,"d":"R$ 7.00"},null,{"$f":"(DetalhesDaFatura[[#This Row],[Qtd.]]*DetalhesDaFatura[[#This Row],[Preço unitário]])-DetalhesDaFatura[[#This Row],[Desconto]]","v":{"v":455,"d":"R$ 455.00"}}]
[null,"Fatura 3-456-2 Dados 12","3-456-2","Z4578",44,{"v":1,"d":"R$ 1.00"},null,{"$f":"(DetalhesDaFatura[[#This Row],[Qtd.]]*DetalhesDaFatura[[#This Row],[Preço unitário]])-DetalhesDaFatura[[#This Row],[Desconto]]","v":{"v":44,"d":"R$ 44.00"}}]